bitfinex/quotes_BTCUSD_20220201
["timestamp","ask_amount","ask_price","bid_price","bid_amount"]
[1643752675488,0.1,38755.0,38754.0,1.27057828]
[1643752675687,0.1,38755.0,38754.0,1.81548622]
[1643752676127,0.1,38755.0,38754.0,1.87580522]
[1643752676327,0.1,38755.0,38754.0,1.97580522]
[1643752676528,0.1,38755.0,38754.0,2.57681147]
[1643752678530,0.1,38755.0,38754.0,2.81681147]
[1643752679031,0.1,38755.0,38754.0,2.89392208]
[1643752679632,0.1,38755.0,38754.0,3.38152161]
[1643752679885,0.1,38755.0,38754.0,3.304411]
[1643752680682,0.1,38755.0,38754.0,3.15331281]
[1643752681284,0.1,38755.0,38754.0,3.23039023]
[1643752682284,0.1,38755.0,38754.0,3.15331281]
[1643752683632,0.1,38755.0,38754.0,2.75950306]
[1643752685033,0.1,38755.0,38754.0,2.71856401]
[1643752685238,0.1,38755.0,38754.0,2.26856401]
[1643752685439,0.1,38755.0,38754.0,1.24444523]
[1643752685634,0.1,38755.0,38754.0,1.12191278]
[1643752686233,0.1,38755.0,38754.0,0.57191278]
[1643752686438,0.1,38755.0,38754.0,0.31545828]
[1643752686439,0.3756657,38755.0,38754.0,0.31545828]
[1643752686842,0.3756657,38755.0,38750.0,0.130128]
[1643752686843,1.3,38754.0,38750.0,0.130128]
[1643752687039,1.15,38750.0,38746.0,0.1226089]
[1643752687243,2.05119913,38750.0,38746.0,0.0080089]
[1643752687497,2.10289913,38750.0,38746.0,0.0080089]
[1643752687693,2.10289913,38750.0,38749.0,0.32820627]
[1643752687897,2.10289913,38750.0,38749.0,0.00239]
[1643752689293,2.15289913,38750.0,38749.0,0.00239]
[1643752689494,1.70289913,38750.0,38749.0,0.00239]
[1643752689694,1.65289913,38750.0,38749.0,0.00239]
[1643752690696,1.55826431,38750.0,38749.0,0.00239]
[1643752691133,0.85826431,38750.0,38749.0,0.00239]
[1643752691434,0.76874348,38750.0,38749.0,0.00239]
[1643752691638,0.42152348,38750.0,38749.0,0.00239]
[1643752692438,0.64508778,38750.0,38749.0,0.00239]
[1643752692634,0.64447348,38750.0,38749.0,0.00239]
[1643752693234,0.42152348,38750.0,38749.0,0.00239]
[1643752694036,0.42152348,38750.0,38749.0,0.40239]
[1643752694240,0.1517,38750.0,38749.0,0.40239]
[1643752694436,0.1,38751.0,38749.0,0.40239]
[1643752694635,0.08,38750.0,38749.0,0.40239]
[1643752694891,0.02733451,38752.0,38750.0,0.6]
[1643752695086,0.22152795,38754.0,38751.0,0.24906713]
[1643752695283,0.22152795,38754.0,38753.0,0.1]
[1643752695284,0.31300231,38754.0,38753.0,0.1]
[1643752695892,0.36300231,38754.0,38753.0,0.1]
[1643752696085,0.31300231,38754.0,38753.0,0.1]
[1643752696885,0.36300231,38754.0,38753.0,0.1]
[1643752697084,0.66022231,38754.0,38753.0,0.1]
[1643752697284,0.71022231,38754.0,38753.0,0.1]
[1643752699434,0.76022231,38754.0,38753.0,0.1]
[1643752700036,0.99516191,38754.0,38753.0,0.1]
[1643752701236,0.89516191,38754.0,38753.0,0.1]
[1643752703183,0.94516191,38754.0,38753.0,0.1]
[1643752703389,1.05,38753.0,38751.0,0.00143134]
[1643752703589,2.13767986,38752.0,38751.0,0.00143134]
[1643752703788,2.23937986,38752.0,38749.0,0.00239]
[1643752703985,1.36631246,38750.0,38749.0,0.00239]
[1643752704187,1.81523246,38750.0,38749.0,0.00239]
[1643752704386,1.91523246,38750.0,38749.0,0.00239]
[1643752704985,1.99515021,38750.0,38749.0,0.00239]
[1643752705187,1.89515021,38750.0,38749.0,0.00239]
[1643752705391,1.99515021,38750.0,38749.0,0.00239]
[1643752706934,1.89515021,38750.0,38749.0,0.00239]
[1643752707434,1.99515021,38750.0,38749.0,0.00239]
[1643752709138,0.64515021,38750.0,38749.0,0.00239]
[1643752709337,0.90035034,38750.0,38749.0,0.00239]
[1643752709540,0.84865034,38750.0,38749.0,0.00239]
[1643752710703,1.05035034,38750.0,38749.0,0.00239]
[1643752710894,1.60035034,38750.0,38749.0,0.00239]
[1643752711896,1.95035034,38750.0,38749.0,0.00239]
[1643752712295,1.60035034,38750.0,38749.0,0.00239]
[1643752713838,1.05035034,38750.0,38749.0,0.00239]
[1643752714050,0.90035034,38750.0,38749.0,0.00239]
[1643752714639,0.90035034,38750.0,38749.0,0.02239]
[1643752714839,1.25035034,38750.0,38749.0,0.02239]
[1643752715238,1.19865034,38750.0,38749.0,0.02239]
[1643752715438,1.24865034,38750.0,38749.0,0.02239]
[1643752715639,1.19865034,38750.0,38749.0,0.02239]
[1643752715842,1.24865034,38750.0,38749.0,0.02239]
[1643752716039,1.34865034,38750.0,38749.0,0.02239]
[1643752716240,1.19865034,38750.0,38749.0,0.02239]
[1643752716441,0.84865034,38750.0,38749.0,0.02239]
[1643752716841,1.14865034,38750.0,38749.0,0.02239]
[1643752717041,1.19865034,38750.0,38749.0,0.02239]
[1643752717240,1.14865034,38750.0,38749.0,0.02239]
[1643752717489,0.84865034,38750.0,38749.0,0.02239]
[1643752718693,1.59865034,38750.0,38749.0,0.02239]
[1643752718892,1.69865034,38750.0,38749.0,0.02239]
[1643752720291,0.99865034,38750.0,38749.0,0.02239]
[1643752720694,1.39865034,38750.0,38749.0,0.02239]
[1643752720893,0.99365034,38750.0,38749.0,0.02239]
[1643752722147,0.85045377,38750.0,38749.0,0.02239]
[1643752723652,0.73845021,38750.0,38749.0,0.02239]
[1643752724147,0.85022624,38750.0,38749.0,0.02239]
[1643752724649,0.73845021,38750.0,38749.0,0.02239]
[1643752724899,0.8615721,38750.0,38749.0,0.02239]
[1643752729536,1.6632721,38750.0,38749.0,0.01739]
[1643752730735,0.9132721,38750.0,38749.0,0.01739]
[1643752731542,1.2132721,38750.0,38749.0,0.01739]
[1643752732591,0.9132721,38750.0,38749.0,0.01739]
[1643752732789,0.8615721,38750.0,38749.0,0.01739]
[1643752733688,1.1615721,38750.0,38749.0,0.01739]
[1643752734095,1.15,38749.0,38748.0,0.0014301]
[1643752734390,1.661775,38749.0,38748.0,0.0014301]
[1643752734789,1.711775,38749.0,38748.0,0.0014301]
[1643752734991,1.811775,38749.0,38746.0,0.002]
[1643752735189,1.61947841,38747.0,38746.0,0.002]
[1643752735389,2.06839841,38747.0,38746.0,0.002]
[1643752735989,2.31457775,38747.0,38746.0,0.002]
[1643752737035,2.41457775,38747.0,38746.0,0.002]
[1643752740585,2.41457775,38747.0,38721.0,0.54605863]
[1643752740795,2.41457775,38747.0,38699.0,1.38780353]
[1643752740796,0.1,38722.0,38699.0,1.38780353]
[1643752740987,0.1,38706.0,38699.0,1.23780353]
[1643752741188,0.1,38702.0,38699.0,2.57708417]
[1643752741390,0.1,38702.0,38699.0,2.86168153]
[1643752741585,1.0028805,38733.0,38699.0,2.86168153]
[1643752741586,0.1,38701.0,38699.0,2.86168153]
[1643752741985,0.1,38701.0,38699.0,2.87201053]
[1643752742187,0.25,38736.0,38699.0,2.87201053]
[1643752742188,0.33580864,38726.0,38699.0,3.21168153]
[1643752742392,0.02171793,38735.0,38699.0,3.21168153]
[1643752742393,0.1,38712.0,38699.0,3.25613671]
[1643752742596,0.08,38701.0,38699.0,3.55613671]
[1643752742790,0.08,38701.0,38699.0,3.79903671]
[1643752742989,0.08,38701.0,38699.0,3.80488075]
[1643752743189,0.08,38701.0,38699.0,3.66906311]
[1643752743391,0.08,38701.0,38699.0,3.77299108]
[1643752743656,0.08,38701.0,38699.0,3.70555871]
[1643752744249,0.08,38701.0,38699.0,3.76636874]
[1643752744452,0.08,38701.0,38699.0,3.83378344]
[1643752744849,0.1,38718.0,38699.0,3.68556579]
[1643752745049,0.1,38716.0,38699.0,3.93596579]
[1643752745249,0.1,38716.0,38699.0,3.98596579]
[1643752745446,0.33580864,38715.0,38699.0,3.98596579]
[1643752745647,0.1,38714.0,38699.0,3.98596579]
[1643752745846,0.33580864,38713.0,38699.0,4.67631729]
[1643752746047,0.33580864,38713.0,38699.0,4.8729899]
[1643752746245,0.22747399,38713.0,38699.0,4.89201978]
[1643752746447,0.22747399,38713.0,38699.0,7.43597035]
[1643752746647,0.1,38712.0,38699.0,7.59788562]
[1643752746849,0.39143232,38711.0,38699.0,4.8306779]
[1643752747155,0.1,38709.0,38699.0,3.89756829]
[1643752747406,0.39143232,38711.0,38699.0,2.92175011]
[1643752747407,0.3025991,38708.0,38699.0,2.92175011]
[1643752747698,0.3025991,38708.0,38699.0,2.45528195]
[1643752747901,0.1,38702.0,38699.0,1.91218858]
[1643752748099,0.1,38700.0,38699.0,2.29998858]
[1643752748301,0.1,38700.0,38699.0,2.33018279]
[1643752749098,0.1,38700.0,38699.0,2.3671155]
[1643752749299,0.1,38700.0,38699.0,2.33432717]
[1643752749901,0.1,38700.0,38699.0,2.17922717]
[1643752750101,0.1,38700.0,38699.0,2.14229446]
[1643752750302,0.39939734,38700.0,38699.0,2.14229446]
[1643752750502,0.48294968,38700.0,38699.0,2.14229446]
[1643752750703,0.2,38700.0,38699.0,2.14229446]
[1643752750904,0.2,38700.0,38699.0,2.27129446]
[1643752751138,0.1,38700.0,38699.0,2.27129446]
[1643752751338,0.09560568,38703.0,38701.0,0.129]
[1643752751538,0.1,38704.0,38703.0,0.579]
[1643752751740,0.12182486,38712.0,38707.0,0.064558]
[1643752751941,0.1,38722.0,38711.0,0.48368754]
[1643752752143,0.1,38722.0,38721.0,0.13368754]
[1643752752350,0.00727214,38729.0,38724.0,0.03211496]
[1643752752543,0.09213603,38741.0,38728.0,0.13368754]
[1643752752743,0.00542413,38742.0,38740.0,0.1]
[1643752752942,1.62121868,38741.0,38740.0,0.1]
[1643752753141,1.90422809,38741.0,38740.0,0.1]
[1643752753540,1.80535385,38741.0,38740.0,0.1]
[1643752754144,1.80535385,38741.0,38737.0,0.1]
[1643752754744,0.07755634,38740.0,38737.0,0.1]
[1643752755196,0.1,38740.0,38739.0,0.1]
[1643752755499,1.5,38740.0,38739.0,0.1]
[1643752755696,1.50129934,38740.0,38739.0,0.1]
[1643752756496,1.60017655,38740.0,38739.0,0.1]
[1643752756695,1.59887721,38740.0,38739.0,0.1]
[1643752760843,1.5,38740.0,38739.0,0.1]
[1643752762792,1.53398798,38740.0,38739.0,0.1]
[1643752763989,1.62335352,38740.0,38739.0,0.1]
[1643752764188,1.62335352,38740.0,38739.0,0.10159669]
[1643752764790,1.58936554,38740.0,38739.0,0.10159669]
[1643752769646,0.31122192,38752.0,38740.0,0.9]
[1643752769936,0.43588273,38773.0,38751.0,0.83038754]
[1643752770129,0.0033,38790.0,38775.0,0.05385933]
[1643752770130,0.38130727,38777.0,38775.0,0.05385933]
[1643752770329,0.43577974,38788.0,38775.0,0.05385933]
[1643752770330,0.32656837,38786.0,38776.0,0.78991934]
[1643752770630,0.00019092,38789.0,38785.0,0.78038754]
[1643752770824,0.002,38795.0,38785.0,0.78038754]
[1643752770825,0.00063477,38795.0,38788.0,0.13368754]
[1643752771025,0.00019092,38800.0,38794.0,0.13368754]
[1643752771218,0.70019092,38800.0,38799.0,0.1]
[1643752771418,3.64361941,38801.0,38799.0,0.13368754]
[1643752771419,2.9435825,38801.0,38799.0,0.13368754]
[1643752771619,2.86480152,38801.0,38799.0,0.24168603]
[1643752771819,1.90537409,38801.0,38799.0,0.29168603]
[1643752772019,1.50098909,38801.0,38800.0,0.65053915]
[1643752772216,1.50098909,38801.0,38800.0,1.34893915]
[1643752772217,1.49597068,38801.0,38800.0,1.34893915]
[1643752772419,0.72323868,38801.0,38800.0,1.59893915]
[1643752772616,0.33389866,38801.0,38800.0,1.34793915]
[1643752772816,0.28188582,38801.0,38800.0,1.34793915]
[1643752773020,0.20225921,38824.0,38802.0,0.55]
[1643752773223,0.00019092,38823.0,38816.0,0.1]
[1643752773419,0.88489786,38817.0,38816.0,0.1]
[1643752773647,0.88489786,38817.0,38811.0,0.02127338]
[1643752773648,0.00065772,38811.0,38804.0,0.20329683]
[1643752773847,1.24488317,38805.0,38804.0,0.25499683]
[1643752774049,1.62942573,38805.0,38804.0,0.20329683]
[1643752774247,1.97942573,38805.0,38803.0,0.128819]
[1643752774446,1.98109141,38804.0,38803.0,0.128819]
[1643752774646,1.58972806,38798.0,38797.0,0.257637]
[1643752774848,1.75604052,38798.0,38797.0,0.257637]
[1643752775046,1.85604052,38798.0,38792.0,0.5]
[1643752775248,0.06631246,38793.0,38792.0,0.5]
[1643752775446,0.1658944,38793.0,38787.0,0.064439]
[1643752775651,0.9,38787.0,38772.0,0.0517]
[1643752775858,0.1,38773.0,38766.0,0.0517]
[1643752776047,0.0983869,38783.0,38766.0,0.0517]
[1643752776048,0.38454256,38782.0,38772.0,0.1341056]
[1643752776248,0.10098184,38777.0,38773.0,1.58178987]
[1643752776451,0.10098184,38777.0,38774.0,0.1]
[1643752776647,0.46979141,38776.0,38773.0,1.55288287]
[1643752776849,0.08524885,38776.0,38773.0,1.55288287]
[1643752777054,0.38454256,38784.0,38775.0,0.1]
[1643752777256,0.38454256,38784.0,38773.0,1.45288287]
[1643752777257,0.38454256,38785.0,38783.0,0.1]
[1643752777526,0.38454256,38785.0,38784.0,1.45296285]
[1643752777712,0.72440573,38785.0,38784.0,1.45296285]
[1643752777909,0.72440573,38785.0,38773.0,0.00143244]
[1643752777910,1.4,38784.0,38773.0,0.00143244]
[1643752778110,0.38454256,38783.0,38778.0,0.05]
[1643752778309,0.24262075,38777.0,38772.0,0.20654453]
[1643752778515,0.38583196,38782.0,38772.0,0.15654453]
[1643752778709,0.38583196,38782.0,38772.0,0.20654453]
[1643752779110,0.54710724,38773.0,38772.0,0.20654453]
[1643752779310,0.09710724,38773.0,38772.0,0.27100553]
[1643752779514,0.09710724,38773.0,38772.0,0.00654453]
[1643752779712,0.39038574,38773.0,38772.0,0.00654453]
[1643752779912,0.09210724,38773.0,38772.0,0.00654453]
[1643752780113,0.79210724,38773.0,38772.0,0.00654453]
[1643752781148,0.09187179,38773.0,38772.0,0.00654453]
[1643752782044,0.03854926,38780.0,38772.0,0.57100953]
[1643752782245,0.8122,38786.0,38772.0,0.57100953]
[1643752782246,0.77006915,38786.0,38779.0,0.15]
[1643752782745,0.77006915,38786.0,38781.0,0.15]
[1643752783140,0.77006915,38786.0,38783.0,0.1]
[1643752783541,0.63159448,38784.0,38783.0,0.15]
[1643752783945,0.72992581,38784.0,38783.0,0.05]
[1643752784146,0.2,38783.0,38780.0,0.064451]
[1643752784344,0.05,38781.0,38780.0,0.064451]
[1643752784546,0.05,38781.0,38779.0,0.128901]
[1643752785201,0.27862973,38782.0,38779.0,0.128901]
[1643752785402,0.57862973,38782.0,38779.0,0.128901]
[1643752785602,0.05,38781.0,38779.0,0.128901]
[1643752785800,0.00748421,38782.0,38779.0,0.128901]
[1643752786201,0.00748421,38782.0,38779.0,0.178901]
[1643752786405,0.00726244,38782.0,38779.0,0.178901]
[1643752786701,0.00597619,38782.0,38780.0,0.1]
[1643752786901,0.00726244,38782.0,38780.0,0.1]
[1643752787301,0.00726244,38782.0,38779.0,0.228901]
[1643752787500,0.00726244,38782.0,38779.0,0.178901]
[1643752787705,0.21610689,38781.0,38778.0,0.00128801]
[1643752787901,0.21610689,38781.0,38777.0,0.36134409]
[1643752788101,0.21610689,38781.0,38778.0,0.00128801]
[1643752788951,0.21610689,38781.0,38777.0,0.128911]
[1643752789148,0.21610689,38781.0,38778.0,0.00128801]
[1643752789848,0.00514366,38792.0,38780.0,0.25]
[1643752790060,0.7866,38797.0,38791.0,0.1]
[1643752790273,0.7866,38797.0,38796.0,0.1]
[1643752790450,0.7221,38805.0,38796.0,0.15]
[1643752790652,0.00796611,38804.0,38802.0,0.1]
[1643752790853,0.2417,38806.0,38803.0,0.08384036]
[1643752790854,0.00755811,38806.0,38803.0,0.08384036]
[1643752791049,0.00755811,38806.0,38803.0,0.064414]
[1643752791248,0.00755811,38806.0,38804.0,0.1]
[1643752791452,0.00755811,38806.0,38804.0,0.1474]
[1643752792250,0.08281517,38809.0,38804.0,0.1474]
[1643752792693,1.4,38805.0,38804.0,0.128821]
[1643752792893,2.04552748,38805.0,38804.0,0.128821]
[1643752793493,2.05107966,38805.0,38804.0,0.128821]
[1643752793998,0.00555218,38805.0,38804.0,0.228821]
[1643752794394,0.97779452,38805.0,38804.0,0.228821]
[1643752794596,1.07779452,38805.0,38804.0,0.228821]
[1643752795000,0.60555218,38805.0,38804.0,0.228821]
[1643752795201,0.00555218,38805.0,38804.0,0.228821]
[1643752795399,0.40555218,38805.0,38804.0,0.228821]
[1643752795696,0.00555218,38805.0,38804.0,0.2629266]
[1643752795900,0.00128607,38806.0,38804.0,0.2629266]
[1643752796149,0.00128607,38806.0,38804.0,0.4513266]
[1643752796445,0.00768055,38813.0,38804.0,0.4513266]
[1643752796648,0.10976695,38811.0,38805.0,0.1]
[1643752796842,1.00976695,38811.0,38810.0,0.1341056]
[1643752797043,0.9,38811.0,38810.0,0.1841056]
[1643752797243,0.9,38811.0,38810.0,0.2815056]
[1643752798044,0.08751729,38812.0,38811.0,0.064402]
[1643752798544,0.08622391,38812.0,38811.0,0.064402]
[1643752798943,0.48622391,38812.0,38811.0,0.064402]
[1643752799347,0.48622391,38812.0,38806.0,0.18518124]
[1643752799546,0.48622391,38812.0,38799.0,0.07459]
[1643752799547,0.05,38806.0,38799.0,0.07459]
[1643752799748,1.42570258,38807.0,38799.0,0.02719]
[1643752799998,0.0158944,38801.0,38800.0,0.064413]
[1643752800198,0.05,38806.0,38800.0,0.064413]
[1643752800497,0.0158944,38810.0,38800.0,0.064413]
[1643752800699,0.0158944,38805.0,38801.0,0.16316864]
[1643752800899,0.23541892,38807.0,38801.0,0.16316864]
[1643752801101,0.0158944,38802.0,38801.0,0.66316864]
[1643752801704,0.07399915,38803.0,38801.0,0.66316864]
[1643752801899,0.07399915,38803.0,38801.0,0.71316864]
[1643752802100,0.07399915,38803.0,38802.0,0.05]
[1643752802499,0.00130443,38804.0,38802.0,0.05]
[1643752802703,0.0010803,38804.0,38803.0,0.05]
[1643752803306,0.0010803,38804.0,38803.0,0.00517713]
[1643752803307,0.0169747,38804.0,38803.0,0.00517713]
[1643752803501,0.0158944,38804.0,38803.0,0.00517713]
[1643752803747,0.5158944,38804.0,38803.0,0.00517713]
[1643752804446,0.59887604,38804.0,38803.0,0.00517713]
[1643752804642,0.59887604,38804.0,38803.0,0.05517713]
[1643752805442,0.09887604,38804.0,38803.0,0.05517713]
[1643752805643,0.09887604,38804.0,38803.0,0.00517713]
[1643752806844,0.08298164,38804.0,38803.0,0.00517713]
[1643752807893,0.08290155,38804.0,38803.0,0.00517713]
[1643752808096,0.09879595,38804.0,38803.0,0.00517713]
[1643752808298,0.14856121,38804.0,38803.0,0.00517713]
[1643752808495,0.09856121,38804.0,38803.0,0.00517713]
[1643752808694,0.99856121,38804.0,38803.0,0.00517713]
[1643752808896,0.94856121,38804.0,38803.0,0.00517713]
[1643752809093,0.05686681,38804.0,38803.0,0.00517713]
[1643752809295,0.07276121,38804.0,38803.0,0.00517713]
[1643752809494,0.05686681,38804.0,38803.0,0.09056675]
[1643752809697,0.07276121,38804.0,38803.0,0.14056675]
[1643752809893,0.07276121,38804.0,38803.0,0.19056675]
[1643752810698,0.05686681,38804.0,38803.0,0.19056675]
[1643752813650,0.05664347,38804.0,38803.0,0.19056675]
[1643752814251,0.04318416,38804.0,38803.0,0.19056675]
[1643752815697,0.74318416,38804.0,38803.0,0.19056675]
[1643752816095,0.04310502,38804.0,38803.0,0.19056675]
[1643752816596,0.40708533,38805.0,38804.0,0.10526188]
[1643752816796,0.09249499,38805.0,38804.0,0.23407688]
[1643752816996,0.10838939,38805.0,38804.0,0.23925401]
[1643752817196,0.10838939,38805.0,38804.0,0.32464363]
[1643752817597,1.00838939,38805.0,38804.0,0.32464363]
[1643752817797,1.37020805,38805.0,38804.0,0.32464363]
[1643752818398,0.10708533,38805.0,38804.0,0.32464363]
[1643752819047,0.47020805,38805.0,38804.0,0.32464363]
[1643752819250,0.10708533,38805.0,38804.0,0.32464363]
[1643752819448,0.47020805,38805.0,38804.0,0.32464363]
[1643752819647,0.10708533,38805.0,38804.0,0.32464363]
[1643752820852,0.00130406,38806.0,38804.0,0.32464363]
[1643752821054,0.00130406,38806.0,38805.0,1.28392296]
[1643752821255,0.92313154,38814.0,38805.0,1.28392296]
[1643752821256,0.001,38818.0,38806.0,1.0]
[1643752821562,0.001,38823.0,38809.0,1.372]
[1643752821751,0.001,38823.0,38811.0,0.178746]
[1643752821951,0.773,38828.0,38818.0,0.6]
[1643752822156,0.10019092,38833.0,38822.0,0.064368]
[1643752822157,0.01644398,38831.0,38822.0,0.064368]
[1643752822410,0.36312272,38831.0,38824.0,0.09192486]
[1643752822611,0.18113497,38834.0,38828.0,0.10526188]
[1643752822805,0.008,38835.0,38829.0,0.128727]
[1643752823007,0.44994159,38830.0,38829.0,0.128727]
[1643752823204,0.09994159,38830.0,38829.0,0.128727]
[1643752824408,0.09994159,38830.0,38829.0,0.13390413]
[1643752824809,0.008,38835.0,38829.0,0.13390413]
[1643752825005,0.08969753,38833.0,38829.0,0.128727]
[1643752825211,0.00128776,38834.0,38829.0,0.228727]
[1643752825810,0.22632385,38834.0,38832.0,0.00517713]
[1643752826008,0.22632385,38834.0,38829.0,0.128727]
[1643752826249,0.008,38835.0,38829.0,0.128727]
[1643752826447,0.00128776,38833.0,38829.0,0.128727]
[1643752826650,0.08138335,38831.0,38829.0,0.228727]
[1643752826848,0.00128776,38833.0,38829.0,0.228727]
[1643752827049,0.00128776,38833.0,38830.0,0.0433]
[1643752827248,0.008,38835.0,38831.0,0.26576594]
[1643752827448,0.008,38835.0,38832.0,0.00517713]
[1643752827648,0.008,38835.0,38831.0,0.31576594]
[1643752827952,0.008,38835.0,38832.0,0.1]
[1643752828548,0.008,38835.0,38833.0,0.064352]
[1643752828948,0.68464065,38834.0,38833.0,0.064352]
[1643752830396,0.68464065,38834.0,38833.0,0.06952913]
[1643752832400,1.15,38833.0,38829.0,0.128727]
[1643752832595,0.11275275,38832.0,38829.0,0.128727]
[1643752832797,0.11275275,38832.0,38830.0,0.04269481]
[1643752832997,0.40822144,38832.0,38830.0,0.04269481]
[1643752833197,0.11275275,38832.0,38830.0,0.04269481]
[1643752833649,0.11275275,38832.0,38830.0,0.09269481]
[1643752834042,0.008,38835.0,38831.0,0.35400536]
[1643752834242,0.02166484,38836.0,38832.0,1.05]
[1643752834444,0.008,38842.0,38832.0,1.05]
[1643752834445,0.008,38842.0,38833.0,0.3433]
[1643752834644,0.353129,38848.0,38836.0,0.85]
[1643752834841,0.35191042,38848.0,38837.0,0.3012937]
[1643752835042,0.35191042,38848.0,38837.0,0.3512937]
[1643752835240,0.00131154,38851.0,38849.0,0.07952648]
[1643752835640,0.00131154,38851.0,38850.0,0.20913915]
[1643752835844,0.00171,38856.0,38850.0,0.25913915]
[1643752836041,0.00128713,38852.0,38850.0,0.25913915]
[1643752836241,0.00514775,38858.0,38851.0,0.75]
[1643752836443,0.00514775,38858.0,38850.0,0.25913915]
[1643752836444,0.09936595,38855.0,38850.0,0.35913915]
[1643752836841,0.00514775,38858.0,38850.0,0.35913915]
[1643752837043,0.00031138,38859.0,38851.0,0.057883]
[1643752837242,0.00031138,38859.0,38851.0,0.201183]
[1643752837500,0.003,38874.0,38854.0,0.75]
[1643752837501,0.00131139,38871.0,38854.0,0.75]
[1643752837707,0.00131139,38871.0,38860.0,0.192861]
[1643752837896,0.00131139,38871.0,38861.0,1.63514371]
[1643752838096,0.00319092,38874.0,38861.0,1.63514371]
[1643752838097,0.10255996,38874.0,38866.0,0.04269481]
[1643752838298,0.26018515,38871.0,38867.0,0.15626571]
[1643752838501,0.00131138,38876.0,38861.0,0.1]
[1643752838502,1.35,38869.0,38861.0,0.1]
[1643752838697,1.34,38869.0,38868.0,0.064301]
[1643752838898,1.69400536,38869.0,38868.0,0.064301]
[1643752839099,1.77144844,38869.0,38868.0,0.114301]
[1643752839699,1.57128832,38869.0,38868.0,0.114301]
[1643752840100,1.57128832,38869.0,38868.0,0.05]
[1643752840300,1.46243571,38864.0,38863.0,0.128628]
[1643752840501,1.46243571,38864.0,38863.0,0.178628]
[1643752840700,1.46243571,38864.0,38863.0,0.128628]
[1643752840902,0.86827019,38856.0,38855.0,0.04269481]
[1643752841169,0.947896,38856.0,38855.0,0.04269481]
[1643752841352,0.26827019,38856.0,38855.0,0.04269481]
[1643752842155,0.00128408,38857.0,38855.0,0.04269481]
[1643752842354,0.00128408,38857.0,38855.0,0.10701681]
[1643752842754,0.00128408,38857.0,38856.0,0.05]
[1643752843255,0.00128408,38858.0,38856.0,0.56345194]
[1643752843455,0.00513557,38864.0,38857.0,0.364304]
[1643752843659,0.00513557,38864.0,38857.0,0.93886893]
[1643752843855,0.05558549,38876.0,38858.0,0.1]
[1643752844255,0.08172115,38871.0,38863.0,0.07374063]
[1643752844455,0.08172115,38871.0,38862.0,0.20144333]
[1643752844655,0.08172115,38871.0,38862.0,0.1]
[1643752844904,0.13226675,38871.0,38863.0,0.064305]
[1643752845103,0.08172115,38871.0,38863.0,0.064305]
[1643752845504,0.07966394,38871.0,38863.0,0.064305]
[1643752845705,0.27271409,38869.0,38863.0,0.064305]
[1643752846410,0.07966394,38871.0,38863.0,0.064305]
[1643752847405,0.39870852,38871.0,38863.0,0.064305]
[1643752848007,0.00126483,38869.0,38863.0,0.064305]
[1643752848406,0.00126483,38869.0,38866.0,0.04269481]
[1643752848647,0.11618118,38868.0,38866.0,0.04269481]
[1643752849158,0.11618118,38868.0,38862.0,0.13008724]
[1643752849159,1.82485148,38867.0,38862.0,0.178609]
[1643752849344,1.82485148,38867.0,38858.0,0.128646]
[1643752849544,0.33739421,38860.0,38858.0,0.128646]
[1643752849743,1.09383049,38859.0,38858.0,0.128646]
[1643752850345,1.09383049,38859.0,38858.0,0.064322]
[1643752850544,1.09383049,38859.0,38857.0,0.1351742]
[1643752850545,1.44097137,38859.0,38857.0,0.1351742]
[1643752850743,1.39714088,38858.0,38857.0,0.1351742]
[1643752851250,0.99714088,38858.0,38857.0,0.1351742]
[1643752852044,0.99714088,38858.0,38857.0,0.0065282]
[1643752852244,0.99714088,38858.0,38856.0,0.00068266]
[1643752852502,1.11904074,38857.0,38856.0,0.00068266]
[1643752852702,1.11904074,38857.0,38855.0,0.178645]
[1643752852903,0.65,38856.0,38855.0,0.17996015]
[1643752853905,0.65,38856.0,38855.0,0.178645]
[1643752854904,0.9231535,38856.0,38855.0,0.178645]
[1643752855204,1.4282537,38856.0,38855.0,0.128645]
[1643752855805,1.4282537,38856.0,38854.0,0.00132985]
[1643752856007,1.50538227,38855.0,38854.0,0.00132985]
[1643752856248,1.50538227,38855.0,38851.0,0.064335]
[1643752856445,0.74233504,38852.0,38851.0,0.064335]
[1643752856645,0.84632245,38852.0,38851.0,0.064335]
[1643752857446,1.11900066,38852.0,38851.0,0.064335]
[1643752857647,1.11900066,38852.0,38851.0,0.0470638]
[1643752858445,0.84632245,38852.0,38851.0,0.0470638]
[1643752859144,1.24632245,38852.0,38851.0,0.0470638]
[1643752859892,0.84632245,38852.0,38851.0,0.0470638]
[1643752861093,0.10398741,38852.0,38851.0,0.0470638]
[1643752861298,0.7794,38864.0,38851.0,0.0970638]
[1643752861695,0.7794,38864.0,38854.0,0.178652]
[1643752861899,0.7794,38864.0,38854.0,0.228652]
[1643752862103,0.10677325,38862.0,38854.0,0.228652]
[1643752862497,0.80092882,38864.0,38857.0,0.00132796]
[1643752863496,0.09674027,38863.0,38856.0,0.064324]
[1643752863744,0.09674027,38863.0,38859.0,0.00132793]
[1643752864146,0.07890291,38861.0,38859.0,0.00132793]
[1643752864549,0.07890291,38861.0,38859.0,0.12996193]
[1643752864743,0.07890291,38861.0,38859.0,0.228634]
[1643752865847,0.07890291,38861.0,38859.0,0.05]
[1643752866252,0.07890291,38861.0,38858.0,0.00132832]
[1643752867049,0.07890291,38861.0,38854.0,0.228652]
[1643752867245,0.47397243,38855.0,38854.0,0.228652]
[1643752867807,0.75166657,38855.0,38854.0,0.228652]
[1643752868007,1.58924925,38855.0,38854.0,0.228652]
[1643752868206,1.32397243,38855.0,38854.0,0.228652]
[1643752868410,1.58680284,38855.0,38854.0,0.1]
[1643752868707,1.58680284,38855.0,38853.0,0.00132842]
[1643752868905,1.58360407,38855.0,38854.0,0.05]
[1643752869105,1.31897243,38855.0,38853.0,0.00132842]
[1643752869305,1.58218808,38855.0,38853.0,0.00132842]
[1643752869611,1.58058877,38855.0,38852.0,0.00786267]
[1643752870606,1.58058877,38855.0,38852.0,0.00653096]
[1643752870808,1.05,38853.0,38852.0,0.00133172]
[1643752871011,1.65983889,38853.0,38852.0,0.00133172]
[1643752871453,1.3,38852.0,38845.0,0.128681]